[Event "FIDE WSTC Open 50 2025"]
[Site "Prague"]
[Date "2025.02.19"]
[Round "3.1"]
[White "Adams, Michael"]
[Black "Csiszar, Csaba"]
[Result "1-0"]
[Annotator "TA"]
[ECO "B30"]
[WhiteElo "2664"]
[BlackElo "2378"]
[PlyCount "63"]
[EventDate "2025.02.17"]
[EventType "team-tourn"]
[EventCountry "CZE"]
[SourceTitle "playchess.com"]
[Source "ChessBase"]
[SourceQuality "1"]
[TimeControl "40/5400+30:1800+30"]

{[%evp 9,63,29,34,21,57,57,54,62,57,48,62,49,55,54,65,60,60,55,74,83,82,70,86,67,71,64,83,61,87,81,97,29,78,78,67,11,146,135,416,416,415,407,452,442,470,464,477,458,468,435,1012,1008,986,986,985,1005]} 1. e4 {[%emt 0:00:07]} c5 {[%emt 0:00:08]} 2. Nf3 {[%emt 0:00:06]} Nc6 {[%emt 0:00:05]} 3. Bb5 {[%emt 0:00:07]} d6 {[%emt 0:00:11]} 4. O-O {[%emt 0:00:07]} Bd7 {[%emt 0:00:04]} 5. c3 {[%emt 0:00:14]} Nf6 {[%emt 0:00:05]} 6. d4 {[%emt 0:00:08] B51: Sicilian: Moscow Variation (3 Bb5+) without 3...Bd7.} a6 {[%emt 0:03:16]} 7. Bxc6 {[%emt 0:01:10]} Bxc6 {[%emt 0:00:05]} 8. d5 {[%emt 0:00:08] White is slightly better.} Bd7 {[%emt 0:01:07]} 9. e5 {[%emt 0:00:42]} dxe5 {[%emt 0:01:21]} 10. Nxe5 {[%emt 0:00:09]} g6 {[%emt 0:02:58]} 11. c4 {[%emt 0:02:14]} Bg7 {[%emt 0:00:56]} 12. Nc3 {[%emt 0:05:15]} O-O {[%emt 0:01:38]} 13. Re1 {[%emt 0:02:24]} b5 {[%emt 0:15:01]} 14. Bg5 {[%emt 0:05:59]} h6 {[%emt 0:09:40]} 15. Bh4 {[%emt 0:03:29]} bxc4 {[%emt 0:06:33][%csl Oa6,Oc4,Oc5] Black has weak pawns} 16. Qe2 {[%emt 0:14:41][%csl Oe5] White sacrificed a pawn. Strong Square White (e5)} Re8 $146 {[%emt 0:13:35]} ({Predecessor:} 16... Rb8 17. Rad1 Re8 18. Nxc4 Rb4 19. a3 Rb3 20. Ne5 Qc8 21. Qc2 Qb7 22. Nc4 Bf5 {1-0 Cicak,S (2596)-Ivanov,S (2622) SWE-chT 0809 2008 (9)}) 17. Rad1 {[%emt 0:00:54][%mdl 1024] White has strong compensation.} Qc8 {[%emt 0:07:39]} 18. h3 {[%emt 0:06:58] White has more active pieces.} Qb7 {[%emt 0:05:38]} 19. Rd2 {[%emt 0:01:02]} Rac8 {[%emt 0:11:03]} 20. Red1 {[%emt 0:08:42]} (20. Nxc4 Bb5 $14) (20. Qf3 $16) 20... Bf5 {[%emt 0:04:50]} (20... Nh5 $11) 21. Nxc4 $16 {[%emt 0:02:59]} Bd7 {[%emt 0:03:57]} 22. Qf3 {[%emt 0:08:53]} (22. d6 $14 g5 (22... exd6 $2 23. Qd3 $18) 23. Bg3 (23. Na5 $2 Qb4 $19)) 22... Qb4 {[%emt 0:02:22]} (22... g5 $1 $11) 23. b3 {[%emt 0:05:12]} Bb5 $2 {[%emt 0:02:29][%mdl 8192] [#] Black cannot hold the game after this.} (23... Qb8 $16 24. Re2 Bb5) 24. Nxb5 $1 $18 {[%emt 0:01:24]} (24. Bxf6 Bxf6 25. Nxb5 axb5 $16) 24... Qxb5 {[%emt 0:01:24]} ({Of course not} 24... axb5 25. a3 $18) 25. d6 {[%emt 0:01:03][%cal Bd5d6,Bd6d7][%mdl 32]} g5 {[%emt 0:00:13]} 26. Bg3 {[%emt 0:01:09] Hoping for dxe7. White is clearly winning.} (26. d7 Nxd7 27. Rxd7 gxh4 $18) 26... Rcd8 {[%emt 0:00:17] [#]} 27. d7 $1 {[%emt 0:05:55][%mdl 512]} Rf8 {[%emt 0:00:58]} 28. a4 {[%emt 0:00:38]} Qb4 {[%emt 0:00:25]} 29. Bc7 {[%emt 0:01:05]} e6 {[%emt 0:00:13]} (29... Rxd7 $142 30. Rxd7 Nxd7 31. Rxd7 Qe1+ 32. Kh2 Qc3 33. Qxc3 (33. Rxe7 Qxf3 34. gxf3 Bf6 $18) 33... Bxc3) 30. Bxd8 {[%emt 0:01:27]} Rxd8 {[%emt 0:00:54]} 31. Ne5 {[%emt 0:00:33]} Qb6 {[%emt 0:00:37]} 32. Nc6 {[%emt 0:01:06] Weighted Error Value: White=0.08 (flawless) /Black=0.55  Loses game:     	---       	Black=1      Mistake:       	White=2     	Black=3      Inaccurate:     	---       	Black=2      OK:         	White=13    	Black=8      Best:        	White=3     	---        Strong:       	White=1     	---} 1-0

[Event "FIDE WSTC Open 50 2025"]
[Site "Prague"]
[Date "2025.02.19"]
[Round "3.2"]
[White "Czebe, Attila"]
[Black "Conquest, Stuart C"]
[Result "0-1"]
[Annotator "TA"]
[ECO "D20"]
[WhiteElo "2255"]
[BlackElo "2513"]
[PlyCount "100"]
[EventDate "2025.02.17"]
[EventType "team-tourn"]
[EventCountry "CZE"]
[SourceTitle "playchess.com"]
[Source "ChessBase"]
[SourceQuality "1"]
[TimeControl "40/5400+30:1800+30"]

{[%evp 9,100,41,55,35,43,39,27,21,35,0,60,27,44,0,0,22,7,-38,-28,-181,-174,-140,-164,-163,-174,-209,-253,-246,-214,-277,-269,-393,-392,-457,-456,-437,-406,-340,-250,-282,-272,-263,-252,-416,-318,-468,-294,-606,-315,-311,-328,-336,-330,-361,-363,-408,-377,-454,-431,-449,-377,-449,-428,-398,-349,-392,-291,-465,-455,-429,0,-417,-309,-377,-267,-247,0,-444,-435,-428,-424,-435,-389,-418,-387,-699,-687,-677,-667,-704,-718,-910,-904]} 1. d4 {[%emt 0:00:37]} d5 {[%emt 0:01:09]} 2. c4 {[%emt 0:03:01]} dxc4 {[%emt 0:01:20]} 3. e3 {[%emt 0:02:33]} e5 {[%emt 0:04:29]} 4. Bxc4 {[%emt 0:00:11]} Nc6 {[%emt 0:00:35]} 5. Nf3 {[%emt 0:09:03]} e4 {[%emt 0:04:42]} 6. Nfd2 {[%emt 0:00:24] D20: Queen's Gambit Accepted: 3 e3 and 3 e4.} Qg5 {[%emt 0:06:28]} 7. Nxe4 {[%emt 0:08:45]} Qxg2 {[%emt 0:02:38]} 8. Ng3 {[%emt 0:01:16] White has an edge.} Nf6 {[%emt 0:24:28]} 9. Nc3 {[%emt 0:01:53] Black must now prevent Bf1.} Bb4 {[%emt 0:12:16]} (9... Bg4 $11 10. Qb3 (10. Bf1 Qxh1 11. Qb3 Qxh2 $19) 10... O-O-O) 10. Bf1 $14 {[%emt 0:34:21]} Qd5 {[%emt 0:00:53]} 11. a3 {[%emt 0:04:16]} Bxc3+ {[%emt 0:01:54]} 12. bxc3 {[%emt 0:00:03][%cal Oe3e4]} Bg4 $132 {[%emt 0:04:51][%mdl 2048] Black has counterplay} 13. Qc2 {[%emt 0:01:34]} (13. c4 Qxh1 14. Nxh1 Bxd1 15. Kxd1 Ne4 $17) 13... O-O-O $146 {[%emt 0:04:48][%cal Oc6e5]} (13... O-O 14. c4 Nxd4 15. exd4 Rfe8+ 16. Be2 Rxe2+ 17. Qxe2 Qxd4 18. Bb2 Qb6 19. Qd2 Re8+ {1-0 Riazantsev,A (2616)-Orozbaev,E (2305) Wch Rapid Samarkand 2023 (9)}) 14. Rg1 $2 {[%emt 0:00:50] [#]} (14. Bd3 $11 {and White has nothing to worry.}) 14... Ne5 $1 $19 {[%emt 0:05:35][%mdl 512]} 15. Bg2 {[%emt 0:02:32]} Nf3+ {[%emt 0:04:06]} 16. Bxf3 {[%emt 0:00:04]} Qxf3 {[%emt 0:00:32] Black attacks} (16... Bxf3 17. Qf5+ Kb8 18. Qxd5 Bxd5 19. a4) 17. Qe2 {[%emt 0:12:59] White is weak on the light squares} Qc6 {[%emt 0:00:31][%csl LRc3,LRe2]} 18. Qd3 {[%emt 0:00:22]} Rhe8 {[%emt 0:02:33]} 19. Bd2 {[%emt 0:00:42]} Be6 {[%emt 0:02:51]} 20. Nf1 {[%emt 0:07:15]} (20. f3 $142 Qxf3 21. a4) 20... g6 {[%emt 0:01:41]} 21. Qe2 {[%emt 0:00:11]} Bc4 {[%emt 0:03:25]} 22. Qd1 {[%emt 0:00:11]} h5 {[%emt 0:01:29]} 23. f3 {[%emt 0:00:32]} Nd5 {[%emt 0:02:51]} 24. Kf2 {[%emt 0:00:05]} f5 {[%emt 0:00:34]} 25. h4 {[%emt 0:00:01]} Re6 {[%emt 0:01:09]} 26. Ng3 $2 {[%emt 0:00:54]} (26. Qc2) 26... Rf8 {[%emt 0:00:58]} 27. Qc1 {[%emt 0:04:15]} (27. Re1) 27... Qe8 {[%emt 0:00:51][%cal Og6g5]} 28. a4 $2 {[%emt 0:00:45]} (28. Rh1) 28... Rf7 {[%emt 0:01:32][%cal Og6g5]} 29. Nf1 {[%emt 0:02:08]} a5 {[%emt 0:01:20]} 30. Rg5 {[%emt 0:00:11]} Rfe7 {[%emt 0:00:34]} 31. Rb1 {[%emt 0:03:03]} b6 {[%emt 0:01:27]} 32. Qd1 {[%emt 0:00:27]} Qd7 {[%emt 0:00:37]} 33. Qc2 {[%emt 0:00:39]} Qd6 {[%emt 0:00:16] Hoping for ...Bxf1.} 34. Rg2 {[%emt 0:00:15]} Re8 {[%emt 0:01:06]} 35. Re1 {[%emt 0:00:05]} Qe7 {[%emt 0:00:12]} 36. Rh2 Kb8 {[%emt 0:00:41]} 37. Kg1 {[%emt 0:01:47]} Ka7 {[%emt 0:00:42]} 38. Qc1 {[%emt 0:00:12] [#]} (38. e4 {was called for.} fxe4 39. fxe4) 38... Nf4 $1 {[%emt 0:00:24]} 39. Qb1 {[%emt 0:00:56]} (39. exf4 Rxe1 40. Qxe1 Qxe1 41. Bxe1 Rxe1) (39. Qd1 Nd3) 39... Nd5 {[%emt 0:00:39]} 40. Qc1 $1 {[%emt 0:00:30]} Qd7 {[%emt 0:00:31]} 41. Ng3 {[%emt 0:01:13][%cal Bf1g3,Bg3e2,Be2g3][%mdl 32]} Nf6 {[%emt 0:14:29]} 42. Ne2 {[%emt 0:04:05]} Nd5 {[%emt 0:02:57]} (42... Qc6 43. d5 Qxd5 (43... Nxd5 $2 44. Nd4 $19)) 43. Ng3 $1 {[%emt 0:01:12]} f4 {[%emt 0:03:23]} (43... Qxa4 44. e4 fxe4 45. fxe4 $19) 44. exf4 {[%emt 0:00:30]} Rxe1+ {[%emt 0:00:25]} ({Much less strong is} 44... Qxa4 45. Re5 $19) 45. Bxe1 {[%emt 0:00:03]} Qxa4 {[%emt 0:03:29]} 46. Ne4 {[%emt 0:00:45]} Bd3 {[%emt 0:00:35]} 47. Rg2 $2 {[%emt 0:05:04]} (47. c4 Qxc4 (47... Bxc4 $2 48. Rc2 $19) 48. Qxc4 Bxc4 49. Kf2) 47... Bxe4 {[%emt 0:01:06] Black is clearly winning.} 48. fxe4 {[%emt 0:00:05]} Rxe4 {[%emt 0:00:09]} 49. Bd2 {[%emt 0:00:04]} Qe8 {[%emt 0:01:19][%cal Od5f4]} 50. Rg5 {[%emt 0:01:52] [#]} Nxf4 $1 {[%emt 0:00:42][%mdl 512] Weighted Error Value: White=0.54/Black=0.48  Mistake:       	White=7     	Black=2      Inaccurate:     	White=2     	Black=2      OK:         	White=11    	Black=17     Best:        	White=3     	Black=4      Strong:       	White=2     	---        Brilliant:      	---       	Black=1} 0-1

[Event "FIDE WSTC Open 50 2025"]
[Site "Prague"]
[Date "2025.02.19"]
[Round "3.3"]
[White "Wells, Peter K"]
[Black "Varga, Zoltan"]
[Result "0-1"]
[Annotator "RC"]
[ECO "D20"]
[WhiteElo "2358"]
[BlackElo "2301"]
[PlyCount "70"]
[EventDate "2025.02.17"]
[EventType "team-tourn"]
[EventCountry "CZE"]
[SourceTitle "playchess.com"]
[Source "ChessBase"]
[SourceQuality "1"]
[TimeControl "40/5400+30:1800+30"]

1. d4 {[%emt 0:00:03]} d5 {[%emt 0:00:26]} 2. c4 {[%emt 0:00:11]} dxc4 {[%emt 0:00:37]} 3. e4 {[%emt 0:00:49]} Nf6 {[%emt 0:00:11]} 4. e5 {[%emt 0:00:24]} Nd5 {[%emt 0:00:05]} 5. Bxc4 {[%emt 0:00:16]} Nb6 {[%emt 0:00:04]} 6. Bd3 {[%emt 0:00:57]} Nc6 {[%emt 0:00:19]} 7. Be3 {[%emt 0:01:18]} Nb4 {[%emt 0:02:16]} 8. Be4 {[%emt 0:00:39]} f5 {[%emt 0:08:42]} 9. a3 {[%emt 0:05:46]} N4d5 {[%emt 0:03:31]} 10. Bxd5 {[%emt 0:06:32]} Qxd5 {[%emt 0:08:16]} 11. Nf3 {[%emt 0:04:45]} Be6 {[%emt 0:06:30]} 12. Nc3 {[%emt 0:04:50]} Qd7 {[%emt 0:00:10]} 13. O-O {[%emt 0:09:23]} Bc4 {[%emt 0:04:41]} 14. e6 {[%emt 0:25:14]} Qxe6 {[%emt 0:16:24]} 15. Re1 {[%emt 0:00:40]} c6 {[%emt 0:00:01]} 16. Bf4 {[%emt 0:14:37]} Qg8 {[%emt 0:00:45]} 17. Qc2 {[%emt 0:05:27]} g6 {[%emt 0:01:51]} 18. Be5 {[%emt 0:05:20]} Bg7 {[%emt 0:01:28]} 19. a4 {[%emt 0:02:04]} a5 {[%emt 0:07:28]} 20. Rab1 {[%emt 0:06:56]} Nd5 {[%emt 0:08:33]} 21. Nxd5 {[%emt 0:01:48]} Bxd5 {[%emt 0:00:39]} 22. Nd2 {[%emt 0:02:33]} Qf7 {[%emt 0:19:23]} 23. b4 {[%emt 0:00:10]} Bxe5 {[%emt 0:03:37]} 24. Rxe5 {[%emt 0:00:03]} axb4 {[%emt 0:02:38]} 25. Rxb4 {[%emt 0:00:06]} e6 {[%emt 0:02:08]} 26. Qc5 {[%emt 0:00:52]} Qe7 {[%emt 0:01:50]} 27. Qxe7+ {[%emt 0:01:34]} Kxe7 {[%emt 0:00:01]} 28. Rxb7+ {[%emt 0:00:04]} Kf6 {[%emt 0:00:02]} 29. Rb4 {[%emt 0:01:02]} Rhb8 {[%emt 0:00:01]} 30. Rxb8 {[%emt 0:00:28]} Rxb8 {[%emt 0:00:03]} 31. f4 {[%emt 0:00:31]} Rb4 {[%emt 0:00:46]} 32. Kf2 {[%emt 0:00:36]} Rxd4 {[%emt 0:01:11]} 33. Ke3 {[%emt 0:00:13]} Rxa4 {[%emt 0:00:15]} 34. g3 {[%emt 0:00:35]} c5 {[%emt 0:00:43]} 35. Kd3 {[%emt 0:00:42]} g5 {[%emt 0:00:15]} 0-1

[Event "FIDE WSTC Open 50 2025"]
[Site "Prague"]
[Date "2025.02.19"]
[Round "3.4"]
[White "Krizsany, Laszlo"]
[Black "Hebden, Mark L"]
[Result "0-1"]
[Annotator "RC"]
[ECO "E61"]
[WhiteElo "2303"]
[BlackElo "2363"]
[PlyCount "70"]
[EventDate "2025.02.17"]
[EventType "team-tourn"]
[EventCountry "CZE"]
[SourceTitle "playchess.com"]
[Source "ChessBase"]
[SourceQuality "1"]
[TimeControl "40/5400+30:1800+30"]

1. d4 {[%emt 0:00:06]} Nf6 {[%emt 0:00:29]} 2. c4 {[%emt 0:00:12]} g6 {[%emt 0:00:17]} 3. Nc3 {[%emt 0:00:10]} Bg7 {[%emt 0:00:07]} 4. g3 {[%emt 0:00:18]} O-O {[%emt 0:00:31]} 5. Bg2 {[%emt 0:00:07]} d6 {[%emt 0:00:26]} 6. e3 {[%emt 0:00:35]} e5 {[%emt 0:01:01]} 7. Nge2 {[%emt 0:00:33]} Re8 {[%emt 0:02:19]} 8. O-O {[%emt 0:00:19]} e4 {[%emt 0:00:27]} 9. Qc2 {[%emt 0:09:56]} Bf5 {[%emt 0:01:34]} 10. h3 {[%emt 0:05:58]} h5 {[%emt 0:00:31]} 11. b3 {[%emt 0:01:15]} c6 {[%emt 0:02:03]} 12. Ba3 {[%emt 0:12:56]} Na6 {[%emt 0:01:40]} 13. Qd2 {[%emt 0:04:22]} Qd7 {[%emt 0:03:29]} 14. Kh2 {[%emt 0:00:20]} Nc7 {[%emt 0:06:05]} 15. d5 {[%emt 0:05:22]} c5 {[%emt 0:00:31]} 16. Bb2 {[%emt 0:07:00]} Qe7 {[%emt 0:04:42]} 17. Rae1 {[%emt 0:05:02]} Rab8 {[%emt 0:00:55]} 18. Ba1 {[%emt 0:02:54]} b5 {[%emt 0:05:04]} 19. Nxb5 {[%emt 0:04:37]} Nxb5 {[%emt 0:00:15]} 20. cxb5 {[%emt 0:00:03]} Rxb5 {[%emt 0:00:40]} 21. Rc1 {[%emt 0:01:10]} Nd7 {[%emt 0:02:09]} 22. Bxg7 {[%emt 0:03:50]} Kxg7 {[%emt 0:00:09]} 23. Nc3 {[%emt 0:01:56]} Rb4 {[%emt 0:02:17]} 24. Qc2 {[%emt 0:04:05]} Qe5 {[%emt 0:07:31]} 25. Rfd1 {[%emt 0:02:08]} Nf6 {[%emt 0:01:51]} 26. Ne2 {[%emt 0:06:11]} a5 {[%emt 0:04:05]} 27. Qd2 {[%emt 0:01:42]} a4 {[%emt 0:02:07]} 28. Rc4 {[%emt 0:02:26]} Rxc4 {[%emt 0:04:38]} 29. bxc4 {[%emt 0:00:02]} Rb8 {[%emt 0:00:27]} 30. Rc1 {[%emt 0:04:07]} a3 {[%emt 0:03:22]} 31. Nc3 {[%emt 0:03:28]} h4 {[%emt 0:01:52]} 32. Rb1 {[%emt 0:01:03]} hxg3+ {[%emt 0:01:45]} 33. fxg3 {[%emt 0:00:07]} Rh8 {[%emt 0:01:28]} 34. Ne2 {[%emt 0:01:44]} Bxh3 {[%emt 0:00:44]} 35. Bxh3 {[%emt 0:00:43]} Ng4+ {[%emt 0:00:15]} 0-1

[Event "FIDE WSTC Open 50 2025"]
[Site "Prague"]
[Date "2025.02.19"]
[Round "3.5"]
[White "Wang, Pin"]
[Black "Hjartarson, Johann"]
[Result "0-1"]
[Annotator "TA"]
[ECO "B06"]
[WhiteElo "2389"]
[BlackElo "2464"]
[PlyCount "82"]
[EventDate "2025.02.17"]
[EventType "team-tourn"]
[EventCountry "CZE"]
[SourceTitle "playchess.com"]
[Source "ChessBase"]
[SourceQuality "1"]
[TimeControl "40/5400+30:1800+30"]

{[%evp 9,82,39,33,48,58,48,52,38,41,56,64,11,45,36,26,37,41,28,62,-17,-42,-41,-37,-106,28,0,131,41,147,137,131,0,0,-47,0,0,0,-84,-81,-118,-79,-79,-75,-73,-70,-69,-81,-73,-80,-79,-70,-70,-80,-277,-265,-393,-400,-400,-387,-386,-364,-458,-461,-461,-454,-527,-520,-519,-511,-558,-550,-622,-502,-460,-389]} 1. e4 {[%emt 0:00:00]} g6 {[%emt 0:00:09]} 2. d4 {[%emt 0:00:26]} Bg7 {[%emt 0:00:07]} 3. Nc3 {[%emt 0:00:03]} d6 {[%emt 0:00:08]} 4. Be3 {[%emt 0:00:30]} a6 {[%emt 0:00:14]} 5. g4 {[%emt 0:00:26]} b5 {[%emt 0:01:44][%cal Bb7b5,Bb5b4][%mdl 32]} 6. Bg2 {[%cal Oe4e5] B06: Modern Defence.} Bb7 {[%emt 0:00:21]} 7. h4 {[%emt 0:00:42]} h6 {[%emt 0:04:31]} 8. Nge2 {[%emt 0:02:24] White is slightly better.} Nf6 {[%emt 0:10:00]} 9. Ng3 {[%emt 0:02:32]} b4 $146 {[%emt 0:00:59]} (9... h5 10. gxh5 Nxh5 11. Nxh5 Rxh5 12. Bf3 Rh8 13. h5 b4 14. Na4 gxh5 15. e5 Qc8 {0-1 Milosevic,A (2114)-Pikula,D (2289) SRB-chT 1st League CS 2022 (7.6)}) 10. Nb1 {[%emt 0:12:30]} (10. Nd5 $14) 10... h5 {[%emt 0:14:57]} 11. gxh5 {[%emt 0:03:11]} Nxh5 {[%emt 0:00:22]} 12. Nxh5 {[%emt 0:00:30]} Rxh5 {[%emt 0:00:13]} 13. Bf3 {[%emt 0:00:30]} Rh8 {[%emt 0:01:17][%cal Oc7c5] [#]} 14. e5 {[%emt 0:13:02]} Qc8 $11 {[%emt 0:02:02]} 15. e6 {[%emt 0:11:17]} fxe6 {[%emt 0:08:23]} 16. Rg1 {[%emt 0:05:01] White sacrificed a pawn} (16. c3 $15) 16... Rxh4 {[%emt 0:07:27]} (16... c5 $1 $17 {[%cal Rc5d4] Strongly threatening ...cxd4.} 17. Rxg6 Bf6 (17... cxd4 18. Bg5 $11)) 17. Rxg6 {[%emt 0:01:36]} Kf7 {[%emt 0:05:55]} (17... Bf8 $11) 18. Rg3 {[%emt 0:07:19]} ({White should play} 18. Rg1 $1 $16) 18... Nd7 {[%emt 0:01:49]} ({Black should try} 18... Nc6 $1 $14) 19. Qd3 $1 $16 {[%emt 0:04:02]} Nf8 {[%emt 0:01:59] Dodges Qg6+} 20. Nd2 {[%emt 0:00:18]} (20. Qe2 $16) 20... Bxf3 $11 {[%emt 0:03:25]} 21. Rxf3+ {[%emt 0:00:48]} (21. Nxf3 $11 {is more appropriate.} Rh1+ 22. Ng1) 21... Ke8 {[%emt 0:00:16]} (21... Bf6 $1 $15) 22. O-O-O {[%emt 0:00:37]} Qb7 {[%emt 0:00:48]} 23. Bg5 {[%emt 0:18:23]} (23. Rg3 $1 $11 {remains equal.} Bf6 24. Nf3) 23... Rg4 $17 {[%emt 0:10:37]} (23... Rxd4 24. Rxf8+ Kxf8 25. Qg6 Rg4) 24. Rg3 {[%emt 0:05:19]} Rxg3 {[%emt 0:00:56]} (24... Rxd4 {with more complications.} 25. Qe2 Be5 26. Rgg1 Bf4) 25. Qxg3 {[%emt 0:04:01][%cal Og5e7] [#]} Qd5 $1 {[%emt 0:03:20]} 26. Nf3 {[%emt 0:01:16][%cal Og5e7]} Qxa2 {[%emt 0:06:45]} (26... Bh8 $5) 27. Bxe7 {[%emt 0:03:07]} Bh6+ {[%emt 0:00:19]} 28. Bg5 {[%emt 0:00:07]} Bxg5+ {[%emt 0:01:03]} 29. Nxg5 {[%emt 0:00:30] and Qf3 should not be overlooked} Qa1+ {[%emt 0:01:15]} 30. Kd2 {[%emt 0:00:03]} Qxb2 {[%emt 0:00:08]} 31. Qf4 {[%emt 0:00:21] This move loses the game for White.} (31. Qf3 $17 Qc3+ (31... Qxd4+ 32. Ke2 $14) 32. Qxc3 bxc3+ 33. Kxc3) 31... Kd7 $19 {[%emt 0:02:49]} 32. Nxe6 {[%emt 0:04:06]} (32. Qe3 $142) 32... Nxe6 {[%emt 0:02:15]} 33. Qf7+ {[%emt 0:00:09] [#]} Kc6 $1 {[%emt 0:00:31]} 34. d5+ {[%emt 0:00:51]} Kb6 {[%emt 0:00:37] ( -> ...Qc3+)} (34... Kxd5 35. Qf3+ Kc4 36. Qxa8 $17) 35. Qxe6 {[%emt 0:00:16][%mdl 4096] Endgame KQR-KQR. Black is a pawn up.} Qc3+ {[%emt 0:00:29] Black is clearly winning.} 36. Kc1 {[%emt 0:00:04]} Rf8 {[%emt 0:01:32]} 37. Qe2 {[%emt 0:01:11]} Qa1+ {[%emt 0:03:42]} 38. Kd2 {[%emt 0:00:01]} Qd4+ {[%emt 0:00:54]} 39. Ke1 {[%emt 0:00:04]} Qc3+ {[%emt 0:00:09]} 40. Kf1 {[%emt 0:00:10]} Qh3+ {[%emt 0:01:06]} 41. Ke1 {[%emt 0:30:10]} Qh1+ {[%emt 0:30:25] Weighted Error Value: White=0.48/Black=0.22 (precise)   Loses game:     	White=1     	---        Mistake:       	White=8     	Black=4      Inaccurate:     	White=1     	Black=3      OK:         	White=5     	Black=12     Best:        	White=5     	Black=4      Strong:       	---       	Black=2} 0-1

[Event "FIDE WSTC Open 50 2025"]
[Site "Prague"]
[Date "2025.02.19"]
[Round "3.6"]
[White "Petursson, Margeir"]
[Black "Ning, Chunhong"]
[Result "1/2-1/2"]
[Annotator "RC"]
[ECO "D30"]
[WhiteElo "2403"]
[BlackElo "2257"]
[PlyCount "146"]
[EventDate "2025.02.17"]
[EventType "team-tourn"]
[EventCountry "CZE"]
[SourceTitle "playchess.com"]
[Source "ChessBase"]
[SourceQuality "1"]
[TimeControl "40/5400+30:1800+30"]

1. d4 {[%emt 0:00:04]} d5 {[%emt 0:00:31]} 2. c4 {[%emt 0:00:10]} e6 {[%emt 0:00:15]} 3. Nf3 {[%emt 0:00:51]} Nf6 {[%emt 0:00:11]} 4. g3 {[%emt 0:00:06]} Bb4+ {[%emt 0:07:33]} 5. Bd2 {[%emt 0:02:05]} Be7 {[%emt 0:02:01]} 6. Bg2 {[%emt 0:00:21]} O-O {[%emt 0:00:08]} 7. O-O {[%emt 0:00:23]} dxc4 {[%emt 0:02:29]} 8. Qc2 {[%emt 0:01:13]} a6 {[%emt 0:05:50]} 9. a4 {[%emt 0:20:55]} Nbd7 {[%emt 0:11:40]} 10. Na3 {[%emt 0:03:16]} c5 {[%emt 0:16:51]} 11. Nxc4 {[%emt 0:05:26]} cxd4 {[%emt 0:10:36]} 12. Ba5 {[%emt 0:10:40]} Qe8 {[%emt 0:16:45]} 13. Nxd4 {[%emt 0:04:58]} Nd5 {[%emt 0:00:47]} 14. e4 {[%emt 0:07:07]} Nb4 {[%emt 0:03:55]} 15. Qc3 {[%emt 0:04:15]} Nc6 {[%emt 0:03:04]} 16. Nxc6 {[%emt 0:00:12]} bxc6 {[%emt 0:00:02]} 17. e5 {[%emt 0:02:13]} Bb7 {[%emt 0:05:11]} 18. Bc7 {[%emt 0:04:56]} f6 {[%emt 0:04:59]} 19. Na5 {[%emt 0:05:07]} Qc8 {[%emt 0:01:33]} 20. Nxc6 {[%emt 0:04:58]} Bc5 {[%emt 0:01:07]} 21. Qxc5 {[%emt 0:05:37]} Nxc5 {[%emt 0:00:18]} 22. Ne7+ {[%emt 0:00:06]} Kf7 {[%emt 0:01:44]} 23. Nxc8 {[%emt 0:00:07]} Raxc8 {[%emt 0:00:11]} 24. Bd6 {[%emt 0:02:22]} Bxg2 {[%emt 0:00:27]} 25. Kxg2 {[%emt 0:00:41]} Rfd8 {[%emt 0:00:14]} 26. Bxc5 {[%emt 0:03:59]} Rxc5 {[%emt 0:00:05]} 27. exf6 {[%emt 0:00:08]} Kxf6 {[%emt 0:00:46]} 28. Rac1 {[%emt 0:03:07]} Rxc1 {[%emt 0:02:07]} 29. Rxc1 {[%emt 0:00:34]} Rb8 {[%emt 0:00:07]} 30. Rc6 {[%emt 0:02:32]} a5 {[%emt 0:00:07]} 31. Rc5 {[%emt 0:00:26]} Rxb2 {[%emt 0:00:04]} 32. Rxa5 {[%emt 0:00:05]} Ra2 {[%emt 0:00:22]} 33. h4 {[%emt 0:01:25]} h5 {[%emt 0:00:39]} 34. Kf3 {[%emt 0:00:33]} Ra3+ {[%emt 0:01:35]} 35. Ke4 {[%emt 0:01:15]} Ra2 {[%emt 0:00:18]} 36. Ra8 {[%emt 0:01:03]} Kg6 {[%emt 0:00:46]} 37. Ke3 {[%emt 0:02:43]} Kf6 {[%emt 0:01:52]} 38. Rf8+ {[%emt 0:00:32]} Kg6 {[%emt 0:00:08]} 39. Rf4 {[%emt 0:00:28]} e5 {[%emt 0:00:10]} 40. Rb4 {[%emt 0:01:26]} Kf5 {[%emt 0:00:11]} 41. Rb7 {[%emt 0:31:57]} Ra3+ {[%emt 0:30:12]} 42. Ke2 {[%emt 0:00:35]} Ra2+ {[%emt 0:00:07]} 43. Kf1 {[%emt 0:00:00]} g5 {[%emt 0:00:00]} 44. Rb4 {[%emt 0:00:00]} gxh4 {[%emt 0:00:00]} 45. Rxh4 {[%emt 0:00:00]} Kg5 {[%emt 0:00:00]} 46. Kg2 {[%emt 0:00:00]} Ra3 {[%emt 0:00:00]} 47. Rb4 {[%emt 0:00:00]} Kf5 {[%emt 0:00:00]} 48. Rc4 {[%emt 0:00:00]} Ra2 {[%emt 0:00:00]} 49. Rb4 {[%emt 0:00:00]} Ra3 {[%emt 0:00:00]} 50. Kh3 {[%emt 0:00:00]} Ra2 {[%emt 0:00:00]} 51. f3 {[%emt 0:00:00]} Ra3 {[%emt 0:00:00]} 52. f4 {[%emt 0:00:00]} exf4 {[%emt 0:00:00]} 53. Rxf4+ {[%emt 0:00:00]} Kg5 {[%emt 0:00:00]} 54. Rb4 {[%emt 0:00:00]} Ra2 {[%emt 0:00:00]} 55. Rb5+ {[%emt 0:00:00]} Kg6 {[%emt 0:00:00]} 56. a5 {[%emt 0:00:00]} Ra4 {[%emt 0:04:05]} 57. Rb6+ {[%emt 0:00:00]} Kg5 {[%emt 0:00:12]} 58. Ra6 {[%emt 0:00:00]} Kf5 {[%emt 0:00:43]} 59. Ra8 {[%emt 0:00:00]} Kg6 {[%emt 0:00:24]} 60. a6 {[%emt 0:00:00]} Kg7 {[%emt 0:00:26]} 61. Kg2 {[%emt 0:00:00]} Ra3 {[%emt 0:00:10]} 62. Kf2 {[%emt 0:00:00]} Kh7 {[%emt 0:00:55]} 63. a7 {[%emt 0:00:00]} Kg7 {[%emt 0:00:15]} 64. Ke2 {[%emt 0:00:00]} Kh7 {[%emt 0:00:12]} 65. Kd2 {[%emt 0:00:00]} Kg7 {[%emt 0:00:05]} 66. Kc2 {[%emt 0:00:00]} Kh7 {[%emt 0:00:06]} 67. Kb2 {[%emt 0:00:00]} Ra5 {[%emt 0:00:32]} 68. Kc3 {[%emt 0:00:04]} Kg7 {[%emt 0:00:09]} 69. Kb4 {[%emt 0:00:06]} Ra1 {[%emt 0:00:08]} 70. Kc5 {[%emt 0:00:15]} Rc1+ {[%emt 0:00:21]} 71. Kd6 {[%emt 0:00:18]} Rd1+ {[%emt 0:00:16]} 72. Ke6 {[%emt 0:00:27]} Ra1 {[%emt 0:00:23]} 73. Ke5 {[%emt 0:00:24]} Ra5+ {[%emt 0:00:13]} 1/2-1/2